[Event "HSG Open 2022 A"]
[Site "Hilversum, Netherlands"]
[Date "2022.06.19"]
[Round "5.8"]
[White "De Groote, Ewoud"]
[Black "De Winter, Arthur"]
[Result "1/2-1/2"]
[TimeControl "1:50 + 0.10"]
[WhiteElo "2233"]
[BlackElo "2126"]

1. d4 {[%clk 01:50:16]} {[%emt 00:00:04]} Nf6 {[%clk 01:49:58]} {[%emt
00:00:23]} 2. c4 {[%clk 01:50:21]} {[%emt 00:00:04]} c5 {[%clk 01:49:36]}
{[%emt 00:00:33]} 3. d5 {[%clk 01:49:41]} {[%emt 00:00:50]} e6 {[%clk
01:49:41]} {[%emt 00:00:04]} 4. Nc3 {[%clk 01:48:33]} {[%emt 00:01:18]} exd5
{[%clk 01:49:46]} {[%emt 00:00:05]} 5. cxd5 {[%clk 01:48:38]} {[%emt 00:00:05]}
d6 {[%clk 01:49:53]} {[%emt 00:00:03]} 6. e4 {[%clk 01:46:45]} {[%emt
00:02:04]} g6 {[%clk 01:49:57]} {[%emt 00:00:06]} 7. f4 {[%clk 01:43:39]}
{[%emt 00:03:16]} Bg7 {[%clk 01:50:00]} {[%emt 00:00:06]} 8. Bb5+ {[%clk
01:41:33]} {[%emt 00:02:16]} Nfd7 {[%clk 01:49:49]} {[%emt 00:00:21]} 9. a4
{[%clk 01:39:05]} {[%emt 00:02:39]} Qh4+ {[%clk 01:49:34]} {[%emt 00:00:24]} 10.
g3 {[%clk 01:38:33]} {[%emt 00:00:43]} Qe7 {[%clk 01:49:40]} {[%emt 00:00:03]}
11. Nf3 {[%clk 01:35:24]} {[%emt 00:03:20]} O-O {[%clk 01:49:06]} {[%emt
00:00:44]} 12. O-O {[%clk 01:30:31]} {[%emt 00:05:03]} Na6 {[%clk 01:48:29]}
{[%emt 00:00:47]} 13. Re1 {[%clk 01:16:54]} {[%emt 00:13:46]} Nb4 {[%clk
01:45:34]} {[%emt 00:03:05]} 14. Bf1 {[%clk 01:10:29]} {[%emt 00:06:35]} b6
{[%clk 01:37:19]} {[%emt 00:08:26]} 15. Bd2 {[%clk 00:51:02]} {[%emt 00:19:37]}
Ba6 {[%clk 01:27:07]} {[%emt 00:10:23]} 16. Bxa6 {[%clk 00:47:48]} {[%emt
00:03:24]} Nxa6 {[%clk 01:27:08]} {[%emt 00:00:08]} 17. Qb3 {[%clk 00:45:12]}
{[%emt 00:02:47]} Rfc8 {[%clk 01:18:48]} {[%emt 00:08:30]} 18. Qc4 {[%clk
00:40:46]} {[%emt 00:04:36]} Nb4 {[%clk 01:16:40]} {[%emt 00:02:18]} 19. Nd1
{[%clk 00:33:46]} {[%emt 00:07:09]} a6 {[%clk 00:45:28]} {[%emt 00:31:22]} 20.
Rc1 {[%clk 00:25:22]} {[%emt 00:08:34]} Qe8 {[%clk 00:38:38]} {[%emt 00:07:01]}
21. Qe2 {[%clk 00:15:27]} {[%emt 00:10:05]} Nf6 {[%clk 00:29:18]} {[%emt
00:09:30]} 22. Bxb4 {[%clk 00:09:15]} {[%emt 00:06:24]} cxb4 {[%clk 00:29:22]}
{[%emt 00:00:04]} 23. Rxc8 {[%clk 00:08:23]} {[%emt 00:01:03]} Qxc8 {[%clk
00:27:45]} {[%emt 00:01:46]} 24. Nf2 {[%clk 00:07:59]} {[%emt 00:00:34]} Qd7
{[%clk 00:18:33]} {[%emt 00:09:22]} 25. Qc4 {[%clk 00:06:01]} {[%emt 00:02:09]}
a5 {[%clk 00:16:59]} {[%emt 00:01:43]} 26. Qc6 {[%clk 00:04:09]} {[%emt
00:02:02]} Qd8 {[%clk 00:08:06]} {[%emt 00:09:02]} 27. Rc1 {[%clk 00:03:53]}
{[%emt 00:00:26]} Nd7 {[%clk 00:07:18]} {[%emt 00:00:57]} 28. Qxd6 {[%clk
00:03:28]} {[%emt 00:00:36]} Nc5 {[%clk 00:07:16]} {[%emt 00:00:12]} 29. Qxd8+
{[%clk 00:01:51]} {[%emt 00:01:47]} Rxd8 {[%clk 00:07:22]} {[%emt 00:00:04]} 30.
Ne5 {[%clk 00:01:37]} {[%emt 00:00:24]} Re8 {[%clk 00:03:23]} {[%emt 00:04:09]}
31. Nc4 {[%clk 00:01:15]} {[%emt 00:00:32]} Nxe4 {[%clk 00:03:21]} {[%emt
00:00:12]} 32. Nxe4 {[%clk 00:01:20]} {[%emt 00:00:05]} Rxe4 {[%clk 00:03:30]}
33. b3 {[%clk 00:00:55]} {[%emt 00:00:36]} Kf8 {[%clk 00:01:43]} {[%emt
00:01:57]} 34. Kf2 {[%clk 00:00:47]} {[%emt 00:00:18]} Rd4 {[%clk 00:01:44]}
{[%emt 00:00:09]} 35. Nxb6 {[%clk 00:00:48]} {[%emt 00:00:09]} Rd3 {[%clk
00:01:53]} {[%emt 00:00:02]} 36. Ke2 {[%clk 00:00:35]} {[%emt 00:00:22]} Rxb3
{[%clk 00:01:54]} {[%emt 00:00:09]} 37. d6 {[%clk 00:00:37]} {[%emt 00:00:08]}
Bc3 {[%clk 00:01:33]} {[%emt 00:00:31]} 38. Nd5 {[%clk 00:00:23]} {[%emt
00:00:24]} Ke8 {[%clk 00:01:36]} {[%emt 00:00:07]} 39. Nxc3 {[%clk 00:00:18]}
{[%emt 00:00:15]} bxc3 {[%clk 00:01:17]} {[%emt 00:00:29]} 40. Kd3 {[%clk
00:00:21]} {[%emt 00:00:07]} Rb6 {[%clk 00:01:19]} {[%emt 00:00:08]} 41. Rxc3
{[%clk 00:00:25]} {[%emt 00:00:06]} 1/2-1/2

[Event "HSG Open 2022 A"]
[Site "Hilversum, Netherlands"]
[Date "2022.06.19"]
[Round "5.9"]
[White "Tabak, Stefan"]
[Black "Wagenvoorde, Guido"]
[Result "1-0"]
[TimeControl "1:50 + 0.10"]
[WhiteElo "2164"]
[BlackElo "2090"]

1. e4 {[%clk 01:50:17]} {[%emt 00:00:01]} c5 {[%clk 01:47:53]} {[%emt
00:02:28]} 2. Nf3 {[%clk 01:49:34]} {[%emt 00:00:52]} e6 {[%clk 01:47:40]}
{[%emt 00:00:23]} 3. b4 {[%clk 01:49:19]} {[%emt 00:00:26]} cxb4 {[%clk
01:46:50]} {[%emt 00:01:00]} 4. d4 {[%clk 01:49:22]} {[%emt 00:00:06]} d6
{[%clk 01:40:39]} {[%emt 00:06:22]} 5. a3 {[%clk 01:48:32]} {[%emt 00:01:00]}
bxa3 {[%clk 01:38:59]} {[%emt 00:01:50]} 6. Bd3 {[%clk 01:48:32]} {[%emt
00:00:09]} Be7 {[%clk 01:35:40]} {[%emt 00:03:28]} 7. O-O {[%clk 01:48:33]}
{[%emt 00:00:10]} Nd7 {[%clk 01:34:33]} {[%emt 00:01:17]} 8. Nxa3 {[%clk
01:44:59]} {[%emt 00:03:45]} e5 {[%clk 01:11:48]} {[%emt 00:22:55]} 9. dxe5
{[%clk 01:37:21]} {[%emt 00:07:48]} dxe5 {[%clk 01:06:09]} {[%emt 00:05:49]} 10.
Bb2 {[%clk 01:37:13]} {[%emt 00:00:18]} Qc7 {[%clk 00:53:33]} {[%emt 00:12:46]}
11. Bb5 {[%clk 01:28:03]} {[%emt 00:09:20]} f6 {[%clk 00:52:13]} {[%emt
00:01:30]} 12. Qd3 {[%clk 01:11:51]} {[%emt 00:16:22]} Nh6 {[%clk 00:47:36]}
{[%emt 00:04:47]} 13. Rfd1 {[%clk 01:11:05]} {[%emt 00:00:56]} Nf7 {[%clk
00:47:04]} {[%emt 00:00:42]} 14. Nh4 {[%clk 01:01:29]} {[%emt 00:09:45]} g6
{[%clk 00:39:50]} {[%emt 00:07:25]} 15. Qh3 {[%clk 00:54:34]} {[%emt 00:07:05]}
Ng5 {[%clk 00:32:51]} {[%emt 00:07:09]} 16. Qd3 {[%clk 00:48:57]} {[%emt
00:05:46]} Nf7 {[%clk 00:31:02]} {[%emt 00:02:00]} 17. Bc4 {[%clk 00:45:46]}
{[%emt 00:03:22]} O-O {[%clk 00:25:55]} {[%emt 00:05:16]} 18. Nb5 {[%clk
00:39:48]} {[%emt 00:06:07]} Qb6 {[%clk 00:23:53]} {[%emt 00:02:13]} 19. Qg3
{[%clk 00:39:50]} {[%emt 00:00:08]} Kh8 {[%clk 00:11:10]} {[%emt 00:12:53]} 20.
Nxg6+ {[%clk 00:36:08]} {[%emt 00:03:52]} hxg6 {[%clk 00:11:19]} {[%emt
00:00:01]} 21. Qxg6 {[%clk 00:36:10]} {[%emt 00:00:08]} Ng5 {[%clk 00:11:17]}
{[%emt 00:00:12]} 22. Bc1 {[%clk 00:32:58]} {[%emt 00:03:22]} f5 {[%clk
00:09:53]} {[%emt 00:01:34]} 23. Nd6 {[%clk 00:31:46]} {[%emt 00:01:22]} Nh7
{[%clk 00:03:10]} {[%emt 00:06:53]} 24. Bh6 {[%clk 00:31:18]} {[%emt 00:00:38]}
1-0

[Event "HSG Open 2022 A"]
[Site "Hilversum, Netherlands"]
[Date "2022.06.19"]
[Round "5.11"]
[White "In t Veld, Daan"]
[Black "Klaren, Oscar"]
[Result "1/2-1/2"]
[TimeControl "1:50 + 0.10"]
[WhiteElo "2125"]
[BlackElo "1854"]

1. e4 {[%clk 01:50:17]} {[%emt 00:00:03]} c5 {[%clk 01:50:15]} {[%emt
00:00:06]} 2. c3 {[%clk 01:50:19]} {[%emt 00:00:08]} Nf6 {[%clk 01:50:19]}
{[%emt 00:00:05]} 3. e5 {[%clk 01:50:24]} {[%emt 00:00:05]} Nd5 {[%clk
01:50:24]} {[%emt 00:00:05]} 4. d4 {[%clk 01:50:16]} {[%emt 00:00:18]} cxd4
{[%clk 01:50:06]} {[%emt 00:00:28]} 5. Nf3 {[%clk 01:50:17]} {[%emt 00:00:09]}
Nc6 {[%clk 01:50:06]} {[%emt 00:00:11]} 6. Bc4 {[%clk 01:50:15]} {[%emt
00:00:12]} Nb6 {[%clk 01:50:10]} {[%emt 00:00:05]} 7. Bb3 {[%clk 01:50:21]}
{[%emt 00:00:04]} d5 {[%clk 01:50:14]} {[%emt 00:00:06]} 8. exd6 {[%clk
01:50:21]} {[%emt 00:00:10]} Qxd6 {[%clk 01:50:12]} {[%emt 00:00:11]} 9. O-O
{[%clk 01:50:11]} {[%emt 00:00:20]} Be6 {[%clk 01:49:32]} {[%emt 00:00:50]} 10.
Na3 {[%clk 01:49:22]} {[%emt 00:00:59]} Bxb3 {[%clk 01:48:22]} {[%emt
00:01:19]} 11. axb3 {[%clk 01:48:41]} {[%emt 00:00:52]} dxc3 {[%clk 01:47:35]}
{[%emt 00:00:57]} 12. Nb5 {[%clk 01:45:48]} {[%emt 00:03:03]} Qxd1 {[%clk
01:46:28]} {[%emt 00:01:17]} 13. Rxd1 {[%clk 01:45:52]} {[%emt 00:00:06]} Rc8
{[%clk 01:45:17]} {[%emt 00:01:21]} 14. Nxa7 {[%clk 01:29:33]} {[%emt
00:16:29]} Nxa7 {[%clk 01:42:45]} {[%emt 00:02:42]} 15. Rxa7 {[%clk 01:29:32]}
{[%emt 00:00:11]} c2 {[%clk 01:42:46]} {[%emt 00:00:09]} 16. Rd2 {[%clk
01:05:41]} {[%emt 00:24:02]} Rc7 {[%clk 01:40:06]} {[%emt 00:02:50]} 17. Ne1
{[%clk 01:03:20]} {[%emt 00:02:31]} Nc8 {[%clk 01:18:30]} {[%emt 00:21:46]} 18.
Ra8 {[%clk 01:03:09]} {[%emt 00:00:20]} g6 {[%clk 01:17:49]} {[%emt 00:00:53]}
19. Rxc2 {[%clk 01:02:08]} {[%emt 00:01:09]} Rxc2 {[%clk 01:17:45]} {[%emt
00:00:14]} 20. Nxc2 {[%clk 01:02:13]} {[%emt 00:00:05]} Kd7 {[%clk 01:17:47]}
{[%emt 00:00:08]} 21. Bd2 {[%clk 00:55:18]} {[%emt 00:07:05]} Bg7 {[%clk
01:06:26]} {[%emt 00:11:32]} 22. Bc3 {[%clk 00:55:20]} {[%emt 00:00:08]} Bxc3
{[%clk 00:57:18]} {[%emt 00:09:18]} 23. bxc3 {[%clk 00:55:24]} {[%emt
00:00:07]} Rd8 {[%clk 00:57:23]} {[%emt 00:00:04]} 24. Kf1 {[%clk 00:54:14]}
{[%emt 00:01:20]} Nd6 {[%clk 00:49:16]} {[%emt 00:08:17]} 25. Rxd8+ {[%clk
00:54:03]} {[%emt 00:00:21]} Kxd8 {[%clk 00:49:21]} {[%emt 00:00:05]} 26. Ke2
{[%clk 00:52:12]} {[%emt 00:02:00]} e5 {[%clk 00:46:37]} {[%emt 00:02:55]} 27.
c4 {[%clk 00:43:39]} {[%emt 00:08:43]} Kd7 {[%clk 00:44:45]} {[%emt 00:02:02]}
28. Kd3 {[%clk 00:40:28]} {[%emt 00:03:21]} Kc6 {[%clk 00:38:51]} {[%emt
00:06:04]} 29. b4 {[%clk 00:32:25]} {[%emt 00:08:12]} f5 {[%clk 00:36:52]}
{[%emt 00:02:09]} 30. c5 {[%clk 00:22:29]} {[%emt 00:10:07]} Nc8 {[%clk
00:22:00]} {[%emt 00:15:02]} 31. f3 {[%clk 00:11:23]} {[%emt 00:11:16]} h5
{[%clk 00:17:40]} {[%emt 00:04:30]} 32. h4 {[%clk 00:09:37]} {[%emt 00:01:56]}
Kb5 {[%clk 00:15:10]} {[%emt 00:02:40]} 33. Kc3 {[%clk 00:09:29]} {[%emt
00:00:17]} Ne7 {[%clk 00:13:08]} {[%emt 00:02:13]} 34. Kb3 {[%clk 00:08:58]}
{[%emt 00:00:41]} Nd5 {[%clk 00:12:29]} {[%emt 00:00:49]} 35. Na3+ {[%clk
00:06:59]} {[%emt 00:02:09]} Kc6 {[%clk 00:12:22]} {[%emt 00:00:17]} 36. g3
{[%clk 00:06:09]} {[%emt 00:00:59]} f4 {[%clk 00:08:31]} {[%emt 00:04:01]} 37.
gxf4 {[%clk 00:06:13]} {[%emt 00:00:07]} Nxf4 {[%clk 00:08:31]} {[%emt
00:00:10]} 38. Kc4 {[%clk 00:05:44]} {[%emt 00:00:38]} g5 {[%clk 00:07:54]}
{[%emt 00:00:47]} 39. b5+ {[%clk 00:03:33]} {[%emt 00:02:21]} Kd7 {[%clk
00:07:24]} {[%emt 00:00:40]} 40. Nc2 {[%clk 00:03:01]} {[%emt 00:00:41]} gxh4
{[%clk 00:06:11]} {[%emt 00:01:23]} 41. Ne3 {[%clk 00:03:09]} {[%emt 00:00:02]}
h3 {[%clk 00:05:05]} {[%emt 00:01:16]} 42. Nf1 {[%clk 00:03:15]} {[%emt
00:00:05]} Ng2 {[%clk 00:04:22]} {[%emt 00:00:52]} 43. Kd3 {[%clk 00:03:08]}
{[%emt 00:00:16]} Ke6 {[%clk 00:03:37]} {[%emt 00:00:56]} 44. Ke4 {[%clk
00:03:12]} {[%emt 00:00:07]} Nf4 {[%clk 00:02:49]} {[%emt 00:00:58]} 45. c6
{[%clk 00:02:07]} {[%emt 00:01:15]} bxc6 {[%clk 00:02:58]} {[%emt 00:00:01]} 46.
bxc6 {[%clk 00:02:13]} {[%emt 00:00:04]} Nd5 {[%clk 00:02:25]} {[%emt
00:00:42]} 47. f4 {[%clk 00:01:15]} {[%emt 00:01:08]} exf4 {[%clk 00:00:58]}
{[%emt 00:01:37]} 48. c7 {[%clk 00:01:22]} {[%emt 00:00:03]} Nxc7 {[%clk
00:00:53]} {[%emt 00:00:15]} 49. Kxf4 {[%clk 00:01:30]} {[%emt 00:00:03]}
1/2-1/2

[Event "HSG Open 2022 A"]
[Site "Hilversum, Netherlands"]
[Date "2022.06.19"]
[Round "5.12"]
[White "Slagboom, Leandro"]
[Black "Verfuerth, Thomas"]
[Result "1/2-1/2"]
[TimeControl "1:50 + 0.10"]
[WhiteElo "2098"]
[BlackElo "2055"]

1. e4 {[%clk 01:50:17]} {[%emt 00:00:02]} c5 {[%clk 01:50:14]} {[%emt
00:00:07]} 2. Nf3 {[%clk 01:50:22]} {[%emt 00:00:04]} d6 {[%clk 01:50:20]}
{[%emt 00:00:04]} 3. d4 {[%clk 01:50:28]} {[%emt 00:00:05]} cxd4 {[%clk
01:50:25]} {[%emt 00:00:04]} 4. Nxd4 {[%clk 01:50:33]} {[%emt 00:00:05]} Nf6
{[%clk 01:50:28]} {[%emt 00:00:07]} 5. f3 {[%clk 01:50:37]} {[%emt 00:00:06]}
g6 {[%clk 01:50:23]} {[%emt 00:00:15]} 6. c4 {[%clk 01:50:41]} {[%emt
00:00:06]} Nc6 {[%clk 01:49:35]} {[%emt 00:00:58]} 7. Nc3 {[%clk 01:50:31]}
{[%emt 00:00:21]} Bg7 {[%clk 01:49:29]} {[%emt 00:00:15]} 8. Be3 {[%clk
01:50:28]} {[%emt 00:00:14]} Nxd4 {[%clk 01:45:05]} {[%emt 00:04:33]} 9. Qxd4
{[%clk 01:48:55]} {[%emt 00:01:44]} Be6 {[%clk 01:39:08]} {[%emt 00:06:06]} 10.
b3 {[%clk 01:44:21]} {[%emt 00:04:44]} Qa5 {[%clk 01:35:28]} {[%emt 00:03:50]}
11. Rc1 {[%clk 01:43:42]} {[%emt 00:00:49]} O-O {[%clk 01:33:37]} {[%emt
00:02:01]} 12. Qd2 {[%clk 01:43:37]} {[%emt 00:00:15]} Rac8 {[%clk 01:32:19]}
{[%emt 00:01:28]} 13. Bd3 {[%clk 01:42:30]} {[%emt 00:01:17]} Rfd8 {[%clk
01:26:58]} {[%emt 00:05:31]} 14. Ne2 {[%clk 01:41:01]} {[%emt 00:01:39]} Qxd2+
{[%clk 01:26:35]} {[%emt 00:00:33]} 15. Kxd2 {[%clk 01:41:09]} {[%emt
00:00:02]} Nd7 {[%clk 01:20:48]} {[%emt 00:05:57]} 16. h4 {[%clk 01:31:32]}
{[%emt 00:09:47]} Nc5 {[%clk 01:14:04]} {[%emt 00:06:54]} 17. h5 {[%clk
01:30:32]} {[%emt 00:01:09]} Nxd3 {[%clk 01:11:58]} {[%emt 00:02:17]} 18. Kxd3
{[%clk 01:30:41]} {[%emt 00:00:02]} a6 {[%clk 01:02:59]} {[%emt 00:09:09]} 19.
Bb6 {[%clk 01:20:55]} {[%emt 00:09:55]} Re8 {[%clk 01:00:56]} {[%emt 00:02:13]}
20. a4 {[%clk 01:18:18]} {[%emt 00:02:47]} Bd7 {[%clk 00:48:22]} {[%emt
00:12:43]} 21. h6 {[%clk 01:11:50]} {[%emt 00:06:39]} Rc6 {[%clk 00:45:02]}
{[%emt 00:03:30]} 22. a5 {[%clk 01:10:44]} {[%emt 00:01:16]} Bb2 {[%clk
00:44:37]} {[%emt 00:00:35]} 23. Rb1 {[%clk 01:07:05]} {[%emt 00:03:48]} Be5
{[%clk 00:42:37]} {[%emt 00:02:10]} 24. g4 {[%clk 01:03:36]} {[%emt 00:03:39]}
e6 {[%clk 00:39:24]} {[%emt 00:03:24]} 25. Bd4 {[%clk 00:56:44]} {[%emt
00:07:01]} Bxd4 {[%clk 00:36:11]} {[%emt 00:03:23]} 26. Nxd4 {[%clk 00:55:12]}
{[%emt 00:01:42]} Rc5 {[%clk 00:35:35]} {[%emt 00:00:47]} 27. b4 {[%clk
00:53:30]} {[%emt 00:01:52]} Rc7 {[%clk 00:35:17]} {[%emt 00:00:27]} 28. Rhc1
{[%clk 00:43:13]} {[%emt 00:10:27]} Rec8 {[%clk 00:33:34]} {[%emt 00:01:53]} 29.
g5 {[%clk 00:35:38]} {[%emt 00:07:45]} Kf8 {[%clk 00:27:10]} {[%emt 00:06:34]}
30. Rc3 {[%clk 00:32:17]} {[%emt 00:03:31]} e5 {[%clk 00:23:02]} {[%emt
00:04:18]} 31. Ne2 {[%clk 00:27:14]} {[%emt 00:05:14]} Ke7 {[%clk 00:20:36]}
{[%emt 00:02:35]} 32. Ng3 {[%clk 00:16:12]} {[%emt 00:11:12]} 1/2-1/2

[ePGN "0.1;DGT LiveChess/2.2.5"]

[Event "HSG Open 2022 A"]
[Site "Hilversum, Netherlands"]
[Date "2022.06.19"]
[Round "6.1"]
[White "Beerdsen, Thomas"]
[Black "Harff, Marcel"]
[Result "1-0"]
[TimeControl "1:50 + 0.10"]
[WhiteElo "2494"]
[BlackElo "2329"]

1. e4 {[%clk 01:50:16]} {[%emt 00:00:03]} e6 {[%clk 01:45:12]} {[%emt
00:05:09]} 2. d4 {[%clk 01:50:20]} {[%emt 00:00:05]} d5 {[%clk 01:45:17]}
{[%emt 00:00:06]} 3. Nc3 {[%clk 01:50:26]} {[%emt 00:00:05]} dxe4 {[%clk
01:45:19]} {[%emt 00:00:07]} 4. Nxe4 {[%clk 01:50:29]} {[%emt 00:00:07]} Nd7
{[%clk 01:45:24]} {[%emt 00:00:05]} 5. Nf3 {[%clk 01:50:30]} {[%emt 00:00:08]}
Ngf6 {[%clk 01:45:29]} {[%emt 00:00:06]} 6. Bg5 {[%clk 01:50:11]} {[%emt
00:00:29]} Be7 {[%clk 01:45:26]} {[%emt 00:00:13]} 7. Nxf6+ {[%clk 01:50:07]}
{[%emt 00:00:14]} Bxf6 {[%clk 01:45:07]} {[%emt 00:00:29]} 8. h4 {[%clk
01:50:10]} {[%emt 00:00:07]} c5 {[%clk 01:44:57]} {[%emt 00:00:21]} 9. Qd2
{[%clk 01:30:43]} {[%emt 00:19:36]} cxd4 {[%clk 01:42:59]} {[%emt 00:02:07]} 10.
Nxd4 {[%clk 01:29:37]} {[%emt 00:01:17]} h6 {[%clk 01:41:31]} {[%emt 00:01:38]}
11. Bxf6 {[%clk 01:27:16]} {[%emt 00:02:31]} Nxf6 {[%clk 01:41:33]} {[%emt
00:00:08]} 12. O-O-O {[%clk 01:21:16]} {[%emt 00:06:09]} a6 {[%clk 01:38:46]}
{[%emt 00:02:58]} 13. Bd3 {[%clk 01:14:24]} {[%emt 00:07:02]} Qc7 {[%clk
01:33:01]} {[%emt 00:05:54]} 14. g4 {[%clk 01:07:29]} {[%emt 00:07:06]} Nxg4
{[%clk 01:32:44]} {[%emt 00:00:28]} 15. Rhg1 {[%clk 01:05:17]} {[%emt
00:02:21]} Ne5 {[%clk 01:31:19]} {[%emt 00:01:34]} 16. Rxg7 {[%clk 01:03:49]}
Bd7 {[%clk 01:30:49]} {[%emt 00:02:18]} 17. Kb1 {[%clk 00:53:43]} {[%emt
00:10:17]} O-O-O {[%clk 01:29:03]} {[%emt 00:01:58]} 18. Be2 {[%clk 00:50:14]}
{[%emt 00:03:37]} Nc4 {[%clk 01:23:09]} {[%emt 00:06:05]} 19. Bxc4 {[%clk
00:45:27]} {[%emt 00:04:58]} Qxc4 {[%clk 01:23:16]} {[%emt 00:00:02]} 20. Qf4
{[%clk 00:41:39]} {[%emt 00:03:57]} Rhe8 {[%clk 01:21:37]} {[%emt 00:01:50]} 21.
b3 {[%clk 00:37:23]} {[%emt 00:04:26]} Qc5 {[%clk 01:20:54]} {[%emt 00:00:50]}
22. Qxf7 {[%clk 00:33:33]} {[%emt 00:04:03]} Rf8 {[%clk 01:20:53]} {[%emt
00:00:12]} 23. Qg6 {[%clk 00:31:32]} {[%emt 00:02:10]} Kb8 {[%clk 01:19:05]}
{[%emt 00:01:57]} 24. Rd3 {[%clk 00:28:40]} {[%emt 00:03:02]} e5 {[%clk
01:18:10]} {[%emt 00:01:05]} 25. Rxd7 {[%clk 00:28:05]} {[%emt 00:00:46]} Rxd7
{[%clk 01:17:04]} {[%emt 00:01:16]} 26. Ne6 {[%clk 00:27:06]} {[%emt 00:01:08]}
Rd6 {[%clk 01:16:55]} {[%emt 00:00:20]} 27. Nxc5 {[%clk 00:27:09]} {[%emt
00:00:07]} 1-0

[Event "HSG Open 2022 A"]
[Site "Hilversum, Netherlands"]
[Date "2022.06.19"]
[Round "6.2"]
[White "Pijpers, Arthur"]
[Black "Wiersma, Eelke"]
[Result "1-0"]
[TimeControl "1:50 + 0.10"]
[WhiteElo "2455"]
[BlackElo "2300"]

1. e4 {[%clk 01:50:17]} {[%emt 00:00:03]} c6 {[%clk 01:50:11]} {[%emt
00:00:09]} 2. d4 {[%clk 01:50:23]} {[%emt 00:00:04]} d5 {[%clk 01:50:11]}
{[%emt 00:00:10]} 3. e5 {[%clk 01:50:27]} {[%emt 00:00:07]} c5 {[%clk
01:49:17]} {[%emt 00:01:04]} 4. Nf3 {[%clk 01:50:31]} {[%emt 00:00:06]} cxd4
{[%clk 01:49:01]} {[%emt 00:00:26]} 5. Qxd4 {[%clk 01:50:36]} {[%emt 00:00:05]}
Nc6 {[%clk 01:47:20]} {[%emt 00:01:50]} 6. Qf4 {[%clk 01:50:41]} {[%emt
00:00:05]} e6 {[%clk 01:46:18]} {[%emt 00:01:12]} 7. Bd3 {[%clk 01:50:27]}
{[%emt 00:00:24]} Nb4 {[%clk 01:42:24]} {[%emt 00:04:04]} 8. Bd2 {[%clk
01:50:10]} {[%emt 00:00:29]} Nxd3+ {[%clk 01:40:36]} {[%emt 00:01:56]} 9. cxd3
{[%clk 01:50:07]} {[%emt 00:00:14]} f5 {[%clk 01:33:43]} {[%emt 00:07:03]} 10.
Nc3 {[%clk 01:42:11]} {[%emt 00:08:06]} Bd7 {[%clk 01:32:01]} {[%emt 00:01:50]}
11. Ne2 {[%clk 01:28:03]} {[%emt 00:14:20]} Qb6 {[%clk 01:27:01]} {[%emt
00:05:10]} 12. O-O {[%clk 01:27:05]} {[%emt 00:01:08]} Ne7 {[%clk 01:26:15]}
{[%emt 00:00:56]} 13. Qg3 {[%clk 01:22:39]} {[%emt 00:04:35]} Rc8 {[%clk
01:13:07]} {[%emt 00:13:18]} 14. Bc3 {[%clk 01:18:03]} {[%emt 00:04:46]} h6
{[%clk 01:08:14]} {[%emt 00:05:03]} 15. Nf4 {[%clk 01:08:17]} {[%emt 00:09:57]}
Kf7 {[%clk 01:05:01]} {[%emt 00:03:23]} 16. Nh5 {[%clk 01:05:55]} {[%emt
00:02:32]} g6 {[%clk 00:53:30]} {[%emt 00:11:41]} 17. Nf6 {[%clk 01:05:43]}
{[%emt 00:00:22]} Bb5 {[%clk 00:53:32]} {[%emt 00:00:08]} 18. Nd4 {[%clk
00:55:02]} {[%emt 00:10:52]} Bg7 {[%clk 00:51:32]} {[%emt 00:02:09]} 19. a4
{[%clk 00:53:32]} {[%emt 00:01:41]} Ba6 {[%clk 00:46:54]} {[%emt 00:04:48]} 20.
Rac1 {[%clk 00:39:54]} {[%emt 00:13:46]} g5 {[%clk 00:42:52]} {[%emt 00:04:12]}
21. Rfe1 {[%clk 00:33:47]} {[%emt 00:06:18]} Rhd8 {[%clk 00:33:13]} {[%emt
00:09:49]} 22. Qh3 {[%clk 00:31:08]} {[%emt 00:02:49]} Rc6 {[%clk 00:30:42]}
{[%emt 00:02:41]} 23. a5 {[%clk 00:23:03]} {[%emt 00:08:15]} Qc7 {[%clk
00:30:36]} {[%emt 00:00:16]} 24. Nxc6 {[%clk 00:23:09]} {[%emt 00:00:04]} bxc6
{[%clk 00:29:55]} {[%emt 00:00:54]} 25. Bb4 {[%clk 00:20:01]} {[%emt 00:03:14]}
Ng6 {[%clk 00:29:41]} {[%emt 00:00:24]} 26. Bd6 {[%clk 00:19:55]} {[%emt
00:00:16]} Rxd6 {[%clk 00:29:20]} {[%emt 00:00:30]} 27. exd6 {[%clk 00:19:37]}
{[%emt 00:00:29]} Qxd6 {[%clk 00:29:21]} {[%emt 00:00:08]} 28. Nh5 {[%clk
00:16:41]} {[%emt 00:03:07]} Bd4 {[%clk 00:25:44]} {[%emt 00:03:46]} 29. Ng3
{[%clk 00:13:40]} {[%emt 00:03:12]} Kg7 {[%clk 00:18:39]} {[%emt 00:07:15]} 30.
Qxf5 {[%clk 00:11:48]} {[%emt 00:02:01]} Nf4 {[%clk 00:16:56]} {[%emt
00:01:53]} 31. Qg4 {[%clk 00:10:01]} {[%emt 00:01:58]} Bxf2+ {[%clk 00:16:43]}
{[%emt 00:00:23]} 32. Kxf2 {[%clk 00:09:43]} {[%emt 00:00:28]} 1-0